lending/lending_fUSD_20251114
["ID","MTS","AMOUNT","RATE_DAILY","PERIOD"]
[393901495,1763087440836,-341.9651,0.0001734,2]
[393901496,1763087440845,-2500.0,0.0001734,2]
[393901497,1763087440854,-153.15038088,0.00017348,2]
[393901498,1763087440863,-9165.42547872,0.00017355,2]
[393901499,1763087440872,-9813.23119987,0.00017364,2]
[393901500,1763087440881,-492.07727878,0.00017373,2]
[393901501,1763087440889,-7800.0,0.000174,6]
[393901502,1763087440898,-9813.23119979,0.00017424,2]
[393901503,1763087440908,-9165.42547872,0.00017433,2]
[393901504,1763087440919,-201.36,0.00017439,2]
[393901505,1763087440928,-500.0,0.00017439,2]
[393901506,1763087440937,-295.81876555,0.00017439,2]
[393901507,1763087440946,-475.07092795,0.00017439,2]
[393901508,1763087440955,-500.0,0.00017439,2]
[393901509,1763087440965,-278.33679203,0.00017439,2]
[393901510,1763087440977,-500.0,0.00017439,2]
[393901511,1763087440987,-519.70481912,0.0001744,2]
[393901512,1763087440997,-528.8705255,0.0001744,2]
[393901513,1763087441007,-420000.0,0.0001744,2]
[393901514,1763087441016,-492.07727878,0.00017448,2]
[393901515,1763087441026,-151.0,0.00017453,2]
[393901516,1763087441035,-151.0,0.00017464,2]
[393901517,1763087441044,-500.0,0.00017473,2]
[393901518,1763087441053,-501.44245862,0.00017473,2]
[393901519,1763087441062,-501.04147781,0.00017473,2]
[393901520,1763087441072,-500.0,0.00017473,2]
[393901521,1763087441082,-501.71636846,0.00017473,2]
[393901522,1763087441092,-501.76237192,0.00017473,2]
[393901523,1763087441101,-500.0,0.00017473,2]
[393901524,1763087441110,-500.0,0.00017473,2]
[393901525,1763087441119,-500.0,0.00017473,2]
[393901526,1763087441128,-164.75502713,0.00017473,2]
[393901527,1763087441138,-349.60427149,0.00017473,2]
[393901528,1763087441147,-503.06763194,0.00017473,2]
[393901529,1763087441156,-500.0,0.00017473,2]
[393901530,1763087441165,-500.82679889,0.00017473,2]
[393901531,1763087441174,-473.74692978,0.00017473,2]
[393901532,1763087441183,-500.85934132,0.00017473,2]
[393901533,1763087441193,-500.0,0.00017473,2]
[393901534,1763087441202,-500.0,0.00017473,2]
[393901535,1763087441212,-501.1969339,0.00017473,2]
[393901536,1763087441225,-500.0,0.00017473,2]
[393901537,1763087441234,-500.0,0.00017473,2]
[393901538,1763087441242,-500.0,0.00017473,2]
[393901539,1763087441252,-500.57601142,0.00017473,2]
[393901540,1763087441261,-500.0,0.00017473,2]
[393901541,1763087441270,-500.0,0.00017473,2]
[393901542,1763087441280,-22771.54878491,0.00017482,2]
[393901543,1763087441290,-9813.23119979,0.00017483,2]
[393901544,1763087441299,-221.4705787,0.00017487,2]
[393901545,1763087441308,-1500.0,0.000175,6]
[393901546,1763087441317,-151.0,0.000175,2]
[393901547,1763087441326,-150.0,0.00017504,2]
[393901548,1763087441336,-9165.42547872,0.00017511,2]
[393901549,1763087441345,-150.0,0.00017513,2]
[393901550,1763087441354,-492.07727878,0.00017524,2]
[393901551,1763087441363,-168.0,0.0001754,2]
[393901552,1763087441373,-9813.23119979,0.00017543,2]
[393901553,1763087441382,-150.0,0.0001755,2]
[393901554,1763087441391,-879.56140513,0.00017573,2]
[393901555,1763087441401,-9165.42547872,0.00017588,2]
[393901556,1763087441410,-492.07727878,0.00017599,2]
[393901557,1763087441422,-1500.0,0.000176,6]
[393901558,1763087441431,-9813.23119979,0.00017602,2]
[393901559,1763087441440,-9813.23119979,0.00017662,2]
[393901560,1763087441449,-9165.42547872,0.00017666,2]
[393901561,1763087441458,-492.07727878,0.00017674,2]
[393901562,1763087441468,-949.13735994,0.00017675,2]
[393901563,1763087441478,-176.232,0.000177,2]
[393901564,1763087441487,-1845.563,0.000177,2]
[393901565,1763087441496,-1500.0,0.000177,6]
[393901566,1763087441505,-201.36075314,0.00017713,2]
[393901567,1763087441514,-9813.23119979,0.00017721,2]
[393901568,1763087441523,-9165.42547872,0.00017744,2]
[393901569,1763087441533,-492.07727878,0.00017749,2]
[393901570,1763087441542,-150.0,0.00017775,2]
[393901571,1763087441552,-9813.23119979,0.00017781,2]
[393901572,1763087441561,-2000.0,0.000178,2]
[393901573,1763087441570,-1500.0,0.000178,6]
[393901574,1763087441579,-439.5813,0.0001782,2]
[393901575,1763087441588,-492.07727878,0.00017825,2]
[393901576,1763087441597,-168.0,0.00017832,2]
[393901577,1763087441606,-9813.23119979,0.0001784,2]
[393901578,1763087441615,-200.0,0.00017856,2]
[393901579,1763087441624,-1000.0,0.000179,2]
[393901580,1763087441633,-1019.2721,0.000179,2]
[393901581,1763087441642,-799.60866335,0.000179,2]
[393901582,1763087441651,-2138.0,0.000179,6]
[393901583,1763087441659,-458.35350212,0.000179,2]
[393901584,1763087441668,-9813.23119979,0.000179,2]
[393901585,1763087441677,-492.07727878,0.000179,2]
[393901586,1763087441687,-816.34493775,0.000179,2]
[393901587,1763087441697,-1043.64460463,0.000179,2]
[393901588,1763087441709,-52894.1994485,0.00017945,2]
[393901589,1763087441719,-793614.4119836,0.00017945,2]
[393901590,1763087441728,-7506.4968687,0.00017945,2]
[393901591,1763087441738,-434.0,0.00017973,2]
[393901592,1763087441747,-501.25798024,0.00017973,2]
[393901593,1763087441757,-355.7704534,0.00017973,2]
[393901594,1763087441767,-501.78019662,0.00017973,2]
[393901595,1763087441777,-150.85217549,0.00017973,2]
[393901596,1763087441786,-505.00673889,0.00017973,2]
[393901597,1763087441796,-503.73300027,0.00017973,2]
[393901598,1763087441805,-1005.8282,0.00017999,2]
[393901599,1763087441814,-300.0,0.00017999,2]
[393901600,1763087441823,-300.0,0.00017999,2]
[393901601,1763087441833,-3950.0,0.00018,2]
[393901602,1763087441841,-150.0,0.00018,2]
[393901603,1763087441850,-5137195.86447196,0.00018,2]
[393901604,1763087441863,-2932.34298008,0.00018,2]
[393901605,1763087441881,-2969.27573121,0.00018,2]
[393901606,1763087441910,-793.56120777,0.00018,2]
[393901769,1763087446370,-280.1941,0.000172,2]
[393901770,1763087446380,-9165.42547872,0.00017822,2]
[393901771,1763087446389,-25472.59525224,0.00018,2]
[393901772,1763087447974,7233.03509528,0.00016866,2]
[393901773,1763087447997,971.96526782,0.00016866,2]
[393901774,1763087460626,177.99,0.00014306,2]
[393901805,1763087770539,2035.64,0.00016423,2]
[393901810,1763087877729,999.0,0.00016379,3]
[393901975,1763087955489,500.0,0.00016367,2]
[393902024,1763087976721,836.45,0.00016355,2]
[393902039,1763088016584,687.40711355,0.00040986,30]
[393902041,1763088017216,204.99,0.00016314,2]
[393902049,1763088028354,184.09,0.00016316,2]
[393902050,1763088044111,181.0,0.00040986,120]
[393902051,1763088050108,1852.42,0.00016316,2]
[393902103,1763088351584,150.0,0.000162,2]
[393902104,1763088351610,150.0,0.0001656,2]
[393902118,1763088585937,1937.46473218,0.00016,10]
[393902119,1763088585958,7526.76526782,0.00016,10]
[393902131,1763088619928,200.0,0.00016233,2]
[393902147,1763088632310,-150.0,0.0001692,2]
[393902148,1763088632321,-151.30027569,0.0001692,2]
[393902149,1763088632331,-300.0,0.00016937,2]
[393902150,1763088632340,-195.0,0.00016953,2]
[393902151,1763088632350,-300.0,0.00016965,2]
[393902152,1763088632365,-195.0,0.00016976,2]
[393902153,1763088632375,-5571.02,0.00016986,2]
[393902154,1763088632383,-300.0,0.00016988,2]
[393902155,1763088632392,-300.0,0.00016996,2]
[393902156,1763088632402,-300.0,0.00016996,2]
[393902157,1763088632411,-1200.0,0.00016996,2]
[393902158,1763088632421,-1200.0,0.00016997,2]
[393902159,1763088632430,-300.0,0.00016997,2]
[393902160,1763088632439,-2000.0,0.00017,2]
[393902161,1763088632448,-352.3136,0.000171,2]
[393902162,1763088632457,-18697.2103,0.000171,2]
[393902163,1763088632467,-999.99,0.000171,2]
[393902164,1763088632476,-299.99,0.000171,4]
[393902165,1763088632486,-3787.24,0.000171,2]
[393902166,1763088632495,-1453.88,0.000171,2]
[393902167,1763088632504,-280.1941,0.000171,2]
[393902168,1763088632513,-519.37403376,0.000171,2]
[393902169,1763088632522,-1000.0,0.000171,2]
[393902170,1763088632531,-2500.0,0.000171,2]
[393902171,1763088632540,-5679.90012483,0.000171,2]
[393902172,1763088632549,-500.0,0.000171,6]
[393902173,1763088632558,-4128.42,0.000171,2]
[393902174,1763088632567,-9999.99,0.000171,2]
[393902175,1763088632577,-150.99,0.000171,2]
[393902176,1763088632587,-588.90929698,0.00017173,2]
[393902177,1763088632597,-500.0,0.00017173,2]
[393902178,1763088632606,-184.74437325,0.00017173,2]
[393902179,1763088632615,-502.86317958,0.00017173,2]
[393902180,1763088632625,-626.66861638,0.00017173,2]
[393902181,1763088632634,-153.01266208,0.00017173,2]
[393902182,1763088632643,-500.0,0.00017173,2]
[393902183,1763088632652,-500.0,0.00017173,2]
[393902184,1763088632662,-519.37403368,0.00017189,2]
[393902185,1763088632671,-5679.90012479,0.00017189,2]
[393902186,1763088632681,-151.0,0.0001719,2]
[393902187,1763088632690,-151.0,0.0001719,2]
[393902188,1763088632700,-151.0,0.0001719,2]
[393902189,1763088632710,-151.0,0.0001719,2]
[393902190,1763088632719,-151.0,0.0001719,2]
[393902191,1763088632728,-151.0,0.0001719,2]
[393902192,1763088632737,-151.0,0.0001719,2]
[393902193,1763088632747,-151.0,0.0001719,2]
[393902195,1763088632757,-151.0,0.0001719,2]
[393902197,1763088632980,-151.0,0.0001719,2]
[393902198,1763088632990,-151.0,0.0001719,2]
[393902199,1763088633000,-151.0,0.0001719,2]
[393902200,1763088633010,-151.0,0.0001719,2]
[393902201,1763088633020,-151.0,0.0001719,2]
[393902202,1763088633029,-151.0,0.0001719,2]
[393902203,1763088633038,-151.0,0.0001719,2]
[393902204,1763088633047,-151.0,0.0001719,2]
[393902205,1763088633056,-151.0,0.0001719,2]
[393902206,1763088633066,-151.0,0.0001719,2]
[393902207,1763088633077,-151.0,0.0001719,2]
[393902208,1763088633086,-151.0,0.0001719,2]
[393902209,1763088633095,-151.0,0.0001719,2]
[393902210,1763088633104,-151.0,0.0001719,2]
[393902211,1763088633114,-151.0,0.0001719,2]
[393902212,1763088633123,-151.0,0.0001719,2]
[393902213,1763088633132,-151.0,0.0001719,2]
[393902214,1763088633141,-151.0,0.0001719,2]
[393902215,1763088633150,-151.0,0.0001719,2]
[393902216,1763088633160,-25975.85539556,0.00017197,2]
[393902217,1763088633169,-500.0,0.00017198,2]
[393902218,1763088633178,-51.40526937,0.00017198,2]
[393902219,1763088633190,-449.2470669,0.00017198,2]
[393902220,1763088633199,-500.0,0.00017198,2]
[393902221,1763088633208,-504.65260117,0.00017198,2]
[393902222,1763088633217,-500.0,0.00017198,2]
[393902223,1763088633226,-500.0,0.00017198,2]
[393902224,1763088633235,-500.0,0.00017198,2]
[393902225,1763088633245,-543.0041758,0.00017198,2]
[393902226,1763088633254,-500.0,0.00017198,2]
[393902227,1763088633263,-286.84938763,0.00017198,2]
[393902228,1763088633272,-500.0,0.00017198,2]
[393902229,1763088633284,-500.0,0.00017198,2]
[393902230,1763088633293,-500.0,0.00017198,2]
[393902231,1763088633302,-500.0,0.00017198,2]
[393902232,1763088633312,-500.0,0.00017198,2]
[393902233,1763088633322,-500.0,0.00017198,2]
[393902234,1763088633331,-500.0,0.00017198,2]
[393902235,1763088633340,-500.0,0.00017198,2]
[393902236,1763088633350,-503.92598697,0.00017198,2]
[393902237,1763088633360,-500.0,0.00017198,2]
[393902238,1763088633369,-500.0,0.00017198,2]
[393902239,1763088633378,-500.0,0.00017198,2]
[393902240,1763088633388,-500.0,0.00017198,2]
[393902241,1763088633397,-500.0,0.00017198,2]
[393902242,1763088633406,-500.0,0.00017198,2]
[393902243,1763088633415,-156.18595343,0.00017198,2]
[393902244,1763088633427,-343.81404657,0.00017198,2]
[393902245,1763088633436,-500.0,0.00017198,2]
[393902246,1763088633445,-500.0,0.00017198,2]
[393902247,1763088633454,-500.0,0.00017198,2]
[393902248,1763088633463,-500.0,0.00017198,2]
[393902249,1763088633473,-500.0,0.00017198,2]
[393902250,1763088633482,-500.0,0.00017198,2]
[393902251,1763088633491,-500.0,0.00017198,2]
[393902252,1763088633501,-500.0,0.00017198,2]
[393902253,1763088633510,-500.0,0.00017198,2]
[393902254,1763088633520,-500.0,0.00017198,2]
[393902255,1763088633529,-500.0,0.00017198,2]
[393902256,1763088633538,-500.0,0.00017198,2]
[393902257,1763088633548,-500.0,0.00017198,2]
[393902258,1763088633557,-500.0,0.00017198,2]
[393902259,1763088633567,-500.0,0.00017198,2]
[393902260,1763088633576,-500.0,0.00017198,2]
[393902261,1763088633586,-500.0,0.00017198,2]
[393902262,1763088633596,-636.43900828,0.00017198,2]
[393902263,1763088633605,-296.74909293,0.00017198,2]
[393902264,1763088633614,-500.0,0.00017198,2]
[393902265,1763088633624,-500.0,0.00017198,2]
[393902266,1763088633634,-500.0,0.00017198,2]
[393902267,1763088633643,-500.0,0.00017198,2]
[393902268,1763088633653,-500.0,0.00017198,2]
[393902269,1763088633663,-500.0,0.00017198,2]
[393902270,1763088633672,-500.0,0.00017198,2]
[393902271,1763088633682,-500.0,0.00017198,2]
[393902272,1763088633691,-500.0,0.00017198,2]
[393902273,1763088633701,-500.0,0.00017198,2]
[393902274,1763088633711,-500.0,0.00017198,2]
[393902275,1763088633721,-500.0,0.00017198,2]
[393902276,1763088633730,-500.0,0.00017198,2]
[393902277,1763088633740,-500.0,0.00017198,2]
[393902278,1763088633750,-500.0,0.00017198,2]
[393902279,1763088633759,-500.0,0.00017198,2]
[393902280,1763088633769,-500.0,0.00017198,2]
[393902281,1763088633778,-500.0,0.00017198,2]
[393902282,1763088633788,-500.0,0.00017198,2]
[393902283,1763088633797,-500.0,0.00017198,2]
[393902284,1763088633806,-500.0,0.00017198,2]
[393902285,1763088633815,-500.0,0.00017198,2]
[393902286,1763088633825,-301.56028555,0.00017198,2]
[393902287,1763088633834,-500.0,0.00017198,2]
[393902288,1763088633843,-500.0,0.00017198,2]
[393902289,1763088633852,-207.07313589,0.00017199,2]
[393902290,1763088633861,-500.0,0.00017199,2]
[393902291,1763088633870,-332.54964956,0.00017199,2]
[393902292,1763088633880,-500.0,0.00017199,2]
[393902293,1763088633889,-244.83575442,0.00017199,2]
[393902294,1763088633898,-500.0,0.00017199,2]
[393902295,1763088633907,-501.25017813,0.00017199,2]
[393902296,1763088633917,-510.17377737,0.00017199,2]
[393902297,1763088633926,-506.31193346,0.00017199,2]
[393902298,1763088633935,-509.11266745,0.00017199,2]
[393902299,1763088633945,-500.0,0.00017199,2]
[393902300,1763088633954,-500.0,0.00017199,2]
[393902301,1763088633964,-500.0,0.00017199,2]
[393902302,1763088633973,-508.19977494,0.00017199,2]
[393902303,1763088633983,-571.72579273,0.00017199,2]
[393902304,1763088633992,-500.0,0.00017199,2]
[393902305,1763088634001,-319.16139679,0.00017199,2]
[393902306,1763088634010,-519.31438006,0.00017199,2]
[393902307,1763088634020,-502.36384594,0.00017199,2]
[393902308,1763088634029,-86363.85443367,0.000172,2]
[393902426,1763088640161,-13695.91068011,0.000172,2]
[393902427,1763088640369,-319940.23488622,0.000172,2]
[393902428,1763088640379,-1100.0,0.000172,6]
[393902429,1763088640389,-204.99,0.00017221,2]
[393902430,1763088640399,-166.68,0.00017249,2]
[393902431,1763088640409,-519.37403368,0.00017278,2]
[393902432,1763088640419,-5679.90012479,0.00017278,2]
[393902433,1763088640428,-150.0,0.0001728,2]
[393902434,1763088640438,-1203.42,0.000173,2]
[393902435,1763088640448,-1208.02,0.000173,2]
[393902436,1763088640458,-1208.02,0.000173,2]
[393902437,1763088640468,-1700.0,0.000173,6]
[393902438,1763088640478,-1000.0,0.0001734,2]
[393902439,1763088640488,-519.37403368,0.00017367,2]
[393902440,1763088640499,-5679.90012479,0.00017367,2]
[393902441,1763088640508,-2300.0,0.000174,6]
[393902442,1763088640519,-544.42745648,0.00017439,2]
[393902443,1763088640529,-519.37403368,0.00017456,2]
[393902444,1763088640538,-5679.90012479,0.00017456,2]
[393902445,1763088640548,-150.0,0.000175,2]
[393902446,1763088640558,-2900.0,0.000175,6]
[393902447,1763088640568,-150.0,0.00017501,2]
[393902448,1763088640578,-519.37403368,0.00017544,2]
[393902449,1763088640588,-315.21082845,0.00017555,2]
[393902450,1763088640598,-500.0,0.000176,6]
[393902451,1763088640608,-150.0,0.0001763,2]
[393902452,1763088640617,-519.37403368,0.00017633,2]
[393902453,1763088640627,-150.0,0.0001764,2]
[393902454,1763088640637,-5115.0,0.00017649,2]
[393902455,1763088640647,-1937.841,0.00017688,2]
[393902456,1763088640656,-185.043,0.00017688,2]
[393902457,1763088640665,-500.0,0.000177,6]
[393902458,1763088640675,-501.87365056,0.00017721,2]
[393902459,1763088640684,-500.0,0.00017721,2]
[393902460,1763088640694,-519.37403368,0.00017722,2]
[393902461,1763088640704,-5115.0,0.00017763,2]
[393902462,1763088640717,-500.0,0.000178,6]
[393902463,1763088640727,-519.37403368,0.00017811,2]
[393902464,1763088640736,-200.0,0.00017856,2]
[393902465,1763088640747,-3459.0,0.00017859,2]
[393902466,1763088640756,-1830.783045,0.00017875,2]
[393902467,1763088640766,-5115.0,0.00017898,2]
[393902468,1763088640775,-2500.0,0.000179,3]
[393902469,1763088640785,-4797.6519798,0.000179,2]
[393902470,1763088640795,-500.0,0.000179,6]
[393902471,1763088640805,-519.37403368,0.000179,2]
[393902472,1763088640814,-355.7704534,0.00017973,2]
[393902473,1763088640824,-501.25798024,0.00017973,2]
[393902474,1763088640835,-501.78019662,0.00017973,2]
[393902475,1763088640844,-150.85217549,0.00017973,2]
[393902476,1763088640854,-503.73300027,0.00017973,2]
[393902477,1763088640864,-3459.0,0.00017975,2]
[393902478,1763088640874,-57165.8051224,0.00017989,2]
[393902479,1763088640884,-1055.3599349,0.00017989,2]
[393902480,1763088640893,-11340.6732148,0.00017989,2]
[393902481,1763088640902,-11230.99205666,0.00017999,2]
[393902482,1763088640911,-300.0,0.00017999,2]
[393902483,1763088640920,-300.0,0.00017999,2]
[393902484,1763088640931,-3744.0,0.00018,2]
[393902485,1763088640941,-150.0,0.00018,2]
[393902486,1763088640951,-4673608.47746047,0.00018,2]
[393902487,1763088640967,-795.96776818,0.00018,2]
[393902488,1763088641000,-2732.0,0.00018,2]
[393902493,1763088643723,-234.48818446,0.00017,2]
[393902495,1763088643733,-1208.02,0.000173,2]
[393902497,1763088643742,-5679.90012479,0.00017544,2]
[393902499,1763088643751,-5786.32236845,0.00018,2]
[393902507,1763088646240,-199932.5189725,0.00018,2]
[393902508,1763088646570,-1001.85872633,0.00018,2]
[393902509,1763088703597,150.0,0.00016783,2]
[393902531,1763088924740,166.66,0.00015724,2]
[393902532,1763088924970,166.66,0.00016055,2]
[393902533,1763088925218,166.66,0.00016386,2]
[393902534,1763088925455,166.66,0.00016717,2]
[393902536,1763088979812,1456.60473218,0.00016516,2]
[393902537,1763088979836,512.55526782,0.00016516,2]
[393902538,1763089012801,150.0,0.00016497,2]
[393902539,1763089013104,150.0,0.00016497,120]
[393902541,1763089117963,200.0,0.00016495,2]
[393902543,1763089146469,189.9678791,0.00016799,2]
[393902544,1763089163175,5800.52,0.00016508,2]
[393902583,1763089299142,1000.0,0.00016545,2]
[393902586,1763089380300,925.11,0.00013699,2]
[393902630,1763089544063,1221.85685308,0.00016438,2]
[393902631,1763089544085,647.89314692,0.00016438,2]
[393902636,1763089566230,150.0,0.000162,2]
[393902637,1763089566318,150.0,0.000168,2]
[393902908,1763089744335,500.0,0.00040984,30]
[393902911,1763089744594,500.0,0.00040984,30]
[393902912,1763089744629,500.0,0.00040984,30]
[393902914,1763089744889,500.0,0.00040984,30]
[393902915,1763089744922,500.0,0.00040984,30]
[393902917,1763089745085,587.7005276,0.00040984,30]
[393902918,1763089745114,500.0,0.00040984,30]
[393902919,1763089745192,500.0,0.00040984,30]
[393902920,1763089745248,1044.21,0.00040984,30]
[393902922,1763089745351,500.0,0.00040984,30]
[393902923,1763089745382,502.84370133,0.00040984,30]
[393902924,1763089745440,500.0,0.00040984,30]
[393902925,1763089745520,1044.21,0.00040984,30]
[393902927,1763089745640,500.0,0.00040984,30]
[393902928,1763089745718,500.0,0.00040984,30]
[393902929,1763089745790,1044.21,0.00040984,30]
[393902931,1763089745868,500.0,0.00040984,30]
[393902932,1763089745934,500.0,0.00040984,30]
[393902933,1763089746026,1044.21,0.00040984,30]
[393902935,1763089746153,3231.75,0.00040984,30]
[393902936,1763089746182,500.0,0.00040984,30]
[393902937,1763089746262,1044.21,0.00040984,30]
[393902939,1763089746404,500.0,0.00040984,30]
[393902940,1763089746433,3231.75,0.00040984,30]
[393902941,1763089746526,1044.21,0.00040984,30]
[393902943,1763089746572,500.0,0.00040984,30]
[393902944,1763089746600,500.0,0.00040984,30]
[393902945,1763089746659,500.0,0.00040984,30]
[393902947,1763089746692,3231.75,0.00040984,30]
[393902948,1763089746783,1044.21,0.00040984,30]
[393902950,1763089746892,3231.75,0.00040984,30]
[393902951,1763089746926,500.0,0.00040984,30]
[393902953,1763089746957,196.85732344,0.00040984,30]
[393902954,1763089746996,576.48,0.00040984,30]
[393902955,1763089747030,1044.21,0.00040984,30]
[393902957,1763089747143,500.0,0.00040984,30]
[393902958,1763089747172,500.0,0.00040984,30]
[393902959,1763089747200,3231.75,0.00040984,30]
[393902960,1763089747249,500.0,0.00040984,30]
[393902961,1763089747277,478.4390302,0.00040984,30]
[393902962,1763089747305,1044.21,0.00040984,30]
[393902965,1763089747381,500.0,0.00040984,30]
[393902966,1763089747409,3231.75,0.00040984,30]
[393902968,1763089747437,500.0,0.00040984,30]
[393902969,1763089747497,500.0,0.00040984,30]
[393902970,1763089747525,1044.21,0.00040984,30]
[393902972,1763089747628,3231.75,0.00040984,30]
[393902973,1763089747658,500.0,0.00040984,30]
[393902974,1763089747690,500.0,0.00040984,30]
[393902975,1763089747746,500.0,0.00040984,30]
[393902977,1763089747952,1044.21,0.00040984,30]
[393902978,1763089747987,3231.75,0.00040984,30]
[393902979,1763089748017,500.0,0.00040984,30]
[393902981,1763089748056,500.0,0.00040984,30]
[393902982,1763089748093,500.0,0.00040984,30]
[393902983,1763089748125,1044.21,0.00040984,30]
[393902984,1763089748157,500.0,0.00040984,30]
[393902985,1763089748190,3231.75,0.00040984,30]
[393902986,1763089748226,500.0,0.00040984,30]
[393902987,1763089748257,500.0,0.00040984,30]
[393902988,1763089748300,1044.21,0.00040984,30]
[393902990,1763089748403,500.0,0.00040984,30]
[393902991,1763089748441,3231.75,0.00040984,30]
[393902992,1763089748511,500.0,0.00040984,30]
[393902993,1763089748540,500.0,0.00040984,30]
[393902995,1763089748586,1044.21,0.00040984,30]
[393902996,1763089748662,500.0,0.00040984,30]
[393902997,1763089748696,3231.75,0.00040984,30]
[393902998,1763089748750,500.0,0.00040984,30]
[393902999,1763089748781,500.0,0.00040984,30]
[393903001,1763089748850,1044.21,0.00040984,30]
[393903002,1763089748894,565.08686693,0.00040984,30]
[393903003,1763089748938,3231.75,0.00040984,30]
[393903004,1763089749004,500.0,0.00040984,30]
[393903005,1763089749086,1044.21,0.00040984,30]
[393903007,1763089749178,3231.75,0.00040984,30]
[393903008,1763089749239,507.40904973,0.00040984,30]
[393903009,1763089749393,1044.21,0.00040984,30]
[393903011,1763089749468,3231.75,0.00040984,30]
[393903013,1763089749506,500.0,0.00040984,30]
[393903014,1763089749632,1044.21,0.00040984,30]
[393903017,1763089749985,3231.75,0.00040984,30]
[393903018,1763089750019,500.0,0.00040984,30]
[393903019,1763089750080,1044.21,0.00040984,30]
[393903022,1763089750343,3231.75,0.00040984,30]
[393903023,1763089750381,500.0,0.00040984,30]
[393903024,1763089750431,1044.21,0.00040984,30]
[393903027,1763089750610,520.71300686,0.00040984,30]
[393903028,1763089750645,3231.75,0.00040984,30]
[393903031,1763089751116,1044.21,0.00040984,30]
[393903032,1763089751145,488.24239605,0.00040984,30]
[393903033,1763089751180,3231.75,0.00040984,30]
[393903034,1763089751210,500.0,0.00040984,30]
[393903035,1763089751254,1044.21,0.00040984,30]
[393903036,1763089751311,3231.75,0.00040984,30]
[393903037,1763089751346,500.0,0.00040984,30]
[393903040,1763089751561,3231.75,0.00040984,30]
[393903041,1763089751603,500.0,0.00040984,30]
[393903042,1763089751637,1044.21,0.00040984,30]
[393903045,1763089751799,3231.75,0.00040984,30]
[393903048,1763089752034,1044.2332734,0.00040984,30]
[393903049,1763089752065,500.0,0.00040984,30]
[393903050,1763089752120,500.0,0.00040984,30]
[393903052,1763089752148,500.0,0.00040984,30]
[393903054,1763089752176,3231.75,0.00040984,30]
[393903055,1763089752204,500.0,0.00040984,30]
[393903056,1763089752321,500.0,0.00040984,30]
[393903057,1763089752350,500.0,0.00040984,30]
[393903058,1763089752379,329.27874858,0.00040984,30]
[393903060,1763089752408,500.0,0.00040984,30]
[393903061,1763089752436,3231.75,0.00040984,30]
[393903063,1763089752471,596.08039949,0.00040984,30]
[393903064,1763089752503,500.0,0.00040984,30]
[393903065,1763089752562,500.0,0.00040984,30]
[393903066,1763089752590,500.0,0.00040984,30]
[393903067,1763089752622,500.0,0.00040984,30]
[393903068,1763089752655,3231.80716106,0.00040984,30]
[393903071,1763089752771,500.0,0.00040984,30]
[393903072,1763089752807,1024.26,0.00040984,30]
[393903073,1763089752835,500.0,0.00040984,30]
[393903074,1763089752866,500.0,0.00040984,30]